fUSD/lending_fUSD_20241216
["ID","MTS","AMOUNT","RATE_DAILY","PERIOD"]
[345534636,1734318658516,-7170.8,0.00022499,3]
[345534637,1734318658525,-205.93487113,0.00022499,3]
[345534638,1734318658535,-7170.8,0.00022499,3]
[345534639,1734318658544,-7170.8,0.00022499,3]
[345534640,1734318658553,-7170.8,0.00022499,3]
[345534641,1734318658562,-7170.8,0.00022499,3]
[345534642,1734318658572,-7170.8,0.00022499,3]
[345534643,1734318658581,-7170.8,0.00022499,3]
[345534644,1734318658591,-7170.8,0.00022499,3]
[345534645,1734318658601,-500.0,0.00022499,3]
[345534646,1734318658611,-7170.8,0.00022499,3]
[345534647,1734318658620,-500.0,0.00022499,3]
[345534648,1734318658630,-7170.8,0.00022499,3]
[345534649,1734318658639,-7170.8,0.00022499,3]
[345534650,1734318658649,-7170.8,0.00022499,3]
[345534651,1734318658658,-7170.8,0.00022499,3]
[345534652,1734318658668,-7170.8,0.00022499,3]
[345534653,1734318658677,-500.0,0.00022499,3]
[345534654,1734318658686,-7170.8,0.00022499,3]
[345534655,1734318658696,-7170.8,0.00022499,3]
[345534656,1734318658705,-500.0,0.00022499,3]
[345534657,1734318658715,-500.0,0.00022499,3]
[345534658,1734318658724,-7170.82768409,0.00022499,3]
[345534659,1734318658734,-420.31,0.00022499,3]
[345534660,1734318658744,-500.0,0.00022499,3]
[345534661,1734318658753,-500.0,0.00022499,3]
[345534662,1734318658762,-500.0,0.00022499,3]
[345534663,1734318658772,-500.0,0.00022499,3]
[345534664,1734318658781,-500.0,0.00022499,3]
[345534665,1734318658791,-500.0,0.00022499,3]
[345534666,1734318658800,-500.0,0.00022499,3]
[345534667,1734318658845,-500.0,0.00022499,3]
[345534668,1734318658855,-311.91,0.00022499,3]
[345534669,1734318658868,-500.0,0.00022499,3]
[345534670,1734318658877,-500.0,0.00022499,3]
[345534671,1734318658886,-444.54294618,0.00022499,3]
[345534672,1734318658895,-500.0,0.00022499,3]
[345534673,1734318658904,-500.0,0.00022499,3]
[345534674,1734318658912,-500.0,0.00022499,3]
[345534675,1734318658922,-500.0,0.00022499,3]
[345534676,1734318658931,-179.4,0.00022499,3]
[345534677,1734318658940,-500.0,0.00022499,3]
[345534678,1734318658949,-500.0,0.00022499,3]
[345534679,1734318658958,-500.0,0.00022499,3]
[345534680,1734318658967,-500.0,0.00022499,3]
[345534681,1734318658977,-380.96,0.00022499,3]
[345534682,1734318658986,-500.0,0.00022499,3]
[345534683,1734318658996,-500.0,0.00022499,3]
[345534684,1734318659006,-500.0,0.00022499,3]
[345534685,1734318659015,-500.0,0.00022499,3]
[345534686,1734318659024,-500.0,0.00022499,3]
[345534687,1734318659033,-500.0,0.00022499,3]
[345534688,1734318659043,-462.68,0.00022499,3]
[345534689,1734318659053,-500.0,0.00022499,3]
[345534690,1734318659062,-500.0,0.00022499,3]
[345534691,1734318659071,-449.10019742,0.00022499,3]
[345534692,1734318659081,-500.0,0.00022499,3]
[345534693,1734318659090,-500.0,0.00022499,3]
[345534694,1734318659099,-500.0,0.00022499,3]
[345534695,1734318659110,-500.0,0.00022499,3]
[345534696,1734318659119,-500.0,0.00022499,3]
[345534697,1734318659128,-500.0,0.00022499,3]
[345534698,1734318659138,-500.0,0.00022499,3]
[345534699,1734318659147,-500.0,0.00022499,3]
[345534700,1734318659156,-500.0,0.00022499,3]
[345534701,1734318659165,-500.0,0.00022499,3]
[345534702,1734318659175,-500.0,0.00022499,3]
[345534703,1734318659184,-579.91625958,0.00022499,3]
[345534704,1734318659198,-500.0,0.00022499,3]
[345534705,1734318659208,-500.0,0.00022499,3]
[345534706,1734318659217,-500.0,0.00022499,3]
[345534707,1734318659227,-500.0,0.00022499,3]
[345534708,1734318659236,-500.0,0.00022499,3]
[345534709,1734318659246,-500.0,0.00022499,3]
[345534710,1734318659255,-500.0,0.00022499,3]
[345534711,1734318659264,-500.0,0.00022499,3]
[345534712,1734318659274,-500.0,0.00022499,3]
[345534713,1734318659284,-500.0,0.00022499,3]
[345534714,1734318659293,-500.0,0.00022499,3]
[345534715,1734318659302,-500.0,0.00022499,3]
[345534716,1734318659312,-299.6,0.00022499,3]
[345534717,1734318659321,-500.0,0.00022499,3]
[345534718,1734318659330,-500.0,0.00022499,3]
[345534719,1734318659339,-213.97120811,0.00022499,3]
[345534720,1734318659349,-500.0,0.00022499,3]
[345534721,1734318659359,-500.0,0.00022499,3]
[345534722,1734318659374,-500.0,0.00022499,3]
[345534723,1734318659383,-500.0,0.00022499,3]
[345534724,1734318659391,-500.0,0.00022499,3]
[345534725,1734318659401,-500.0,0.00022499,3]
[345534726,1734318659411,-500.0,0.00022499,3]
[345534727,1734318659420,-500.0,0.00022499,3]
[345534728,1734318659429,-500.0,0.00022499,3]
[345534729,1734318659438,-500.0,0.00022499,3]
[345534730,1734318659447,-500.0,0.00022499,3]
[345534731,1734318659456,-500.0,0.00022499,3]
[345534732,1734318659465,-500.0,0.00022499,3]
[345534733,1734318659474,-500.0,0.00022499,3]
[345534734,1734318659483,-500.0,0.00022499,3]
[345534735,1734318659492,-573.52,0.00022499,3]
[345534736,1734318659502,-500.0,0.00022499,3]
[345534737,1734318659511,-227.82,0.00022499,3]
[345534738,1734318659519,-500.0,0.00022499,3]
[345534739,1734318659528,-500.0,0.00022499,3]
[345534740,1734318659538,-500.0,0.00022499,3]
[345534741,1734318659547,-500.0,0.00022499,3]
[345534742,1734318659557,-482.35955127,0.00022499,3]
[345534743,1734318659567,-151.0,0.00022499,7]
[345534744,1734318659577,-151.0,0.00022499,7]
[345534745,1734318659587,-151.0,0.00022499,7]
[345534746,1734318659596,-151.0,0.00022499,7]
[345534747,1734318659605,-500.0,0.00022499,3]
[345534748,1734318659616,-500.0,0.00022499,3]
[345534749,1734318659625,-500.0,0.00022499,3]
[345534750,1734318659634,-168.545449,0.00022499,7]
[345534751,1734318659644,-500.0,0.00022499,3]
[345534752,1734318659653,-500.0,0.00022499,3]
[345534753,1734318659663,-500.0,0.00022499,3]
[345534754,1734318659672,-500.0,0.00022499,3]
[345534755,1734318659681,-500.0,0.00022499,3]
[345534756,1734318659690,-500.0,0.00022499,3]
[345534757,1734318659699,-500.0,0.00022499,3]
[345534758,1734318659709,-500.0,0.00022499,3]
[345534759,1734318659718,-500.0,0.00022499,3]
[345534760,1734318659727,-500.0,0.00022499,3]
[345534761,1734318659736,-500.0,0.00022499,3]
[345534762,1734318659746,-517.56,0.00022499,3]
[345534763,1734318659755,-500.0,0.00022499,3]
[345534764,1734318659764,-280.56019001,0.00022499,3]
[345534765,1734318659773,-546.11195085,0.00022499,3]
[345534766,1734318659782,-500.0,0.00022499,3]
[345534767,1734318659791,-500.0,0.00022499,3]
[345534768,1734318659800,-500.0,0.00022499,3]
[345534769,1734318659809,-500.0,0.00022499,3]
[345534770,1734318659818,-500.0,0.00022499,3]
[345534771,1734318659827,-579.05,0.00022499,3]
[345534772,1734318659836,-500.0,0.00022499,3]
[345534773,1734318659845,-579.05,0.00022499,3]
[345534774,1734318659855,-500.0,0.00022499,3]
[345534775,1734318659865,-579.05,0.00022499,3]
[345534776,1734318659874,-500.0,0.00022499,3]
[345534777,1734318659883,-500.0,0.00022499,3]
[345534778,1734318659892,-579.05,0.00022499,3]
[345534779,1734318659901,-500.0,0.00022499,3]
[345534780,1734318659910,-579.05,0.00022499,3]
[345534781,1734318659919,-500.0,0.00022499,3]
[345534782,1734318659929,-579.05,0.00022499,3]
[345534783,1734318659938,-579.05,0.00022499,3]
[345534784,1734318659947,-500.0,0.00022499,3]
[345534785,1734318659956,-454.90258811,0.00022499,3]
[345534786,1734318659965,-579.05,0.00022499,3]
[345534787,1734318659975,-579.05,0.00022499,3]
[345534788,1734318659984,-579.05,0.00022499,3]
[345534789,1734318659994,-579.05,0.00022499,3]
[345534790,1734318660003,-579.05,0.00022499,3]
[345534791,1734318660012,-579.05,0.00022499,3]
[345534792,1734318660021,-579.05,0.00022499,3]
[345534793,1734318660032,-881.75555803,0.000225,2]
[345534794,1734318660041,-529716.2291699,0.000225,2]
[345534795,1734318660051,-5004.0,0.000225,5]
[345534796,1734318660061,-181546.44653595,0.000225,2]
[345534797,1734318660246,-553.12399616,0.000225,2]
[345534798,1734318660258,-20880.35,0.000225,2]
[345534799,1734318660372,-505.04945628,0.00022296,3]
[345534800,1734318660382,-500.0,0.00022296,3]
[345534801,1734318660392,-500.0,0.00022436,3]
[345534802,1734318660402,-500.0,0.00022496,3]
[345534803,1734318660411,-500.0,0.00022498,3]
[345534804,1734318660421,-500.0,0.00022498,3]
[345534805,1734318660430,-500.0,0.00022498,3]
[345534806,1734318660440,-579.05,0.00022499,3]
[345534807,1734318660450,-579.05,0.00022499,3]
[345534808,1734318660459,-562.85054372,0.00022499,3]
[345534809,1734318660471,-16.36326041,0.00022499,3]
[345534810,1734318660481,-500.0,0.00022499,3]
[345534811,1734318660491,-500.0,0.00022499,3]
[345534812,1734318660500,-14657.63015869,0.000225,2]
[345534813,1734318660575,-1099.0,0.00022176,2]
[345534814,1734318660585,-5000.0,0.00022196,2]
[345534815,1734318660595,-500.0,0.00022499,3]
[345534816,1734318660604,-500.0,0.00022499,3]
[345534817,1734318660616,-500.0,0.00022499,3]
[345534818,1734318660625,-500.0,0.00022499,3]
[345534819,1734318660635,-500.0,0.00022499,3]
[345534820,1734318660645,-500.0,0.00022499,3]
[345534821,1734318660654,-500.0,0.00022499,3]
[345534822,1734318660665,-500.0,0.00022499,3]
[345534823,1734318660674,-500.0,0.00022499,3]
[345534824,1734318660684,-500.0,0.00022499,3]
[345534825,1734318660694,-9836.5538,0.000225,2]
[345534826,1734318660705,-6540.00002,0.000225,2]
[345534827,1734318660717,-500.0,0.000225,2]
[345534828,1734318660728,-1174.72013482,0.000225,2]
[345534829,1734318660740,-1242.42749038,0.000225,2]
[345534830,1734318660756,-500.0,0.00022499,3]
[345534831,1734318660765,-2628.97712188,0.000225,2]
[345534832,1734318660776,-1224.73989343,0.000225,2]
[345534833,1734318660804,-271.1951,0.000225,2]
[345534834,1734318660849,-9023.53308845,0.000225,2]
[345534835,1734318660862,-588.94,0.000225,2]
[345534836,1734318660874,-1318.96484574,0.000225,2]
[345534837,1734318668396,153.21002,0.00019178,2]
[345534838,1734318672590,150.300841,0.00019178,2]
[345534839,1734318673306,150.300841,0.00019178,2]
[345534840,1734318673620,150.300841,0.00019488,3]
[345534841,1734318673933,150.300841,0.00019499,3]
[345534842,1734318674170,151.590925,0.00019178,2]
[345534843,1734318674257,150.300841,0.00019694,3]
[345534844,1734318674469,151.590925,0.00019488,3]
[345534845,1734318674548,150.300841,0.00019774,3]
[345534846,1734318674766,151.590925,0.00019489,3]
[345534847,1734318674883,150.300841,0.0001979,3]
[345534848,1734318675208,151.590925,0.00019694,3]
[345534849,1734318675238,150.300841,0.00019877,3]
[345534850,1734318675492,151.590925,0.00019785,3]
[345534851,1734318675521,150.300841,0.00019899,3]
[345534852,1734318675849,151.590925,0.00019874,3]
[345534853,1734318675884,150.300841,0.00019993,3]
[345534854,1734318676166,150.300841,0.00019996,3]
[345534855,1734318676317,151.590925,0.00019899,3]
[345534856,1734318676619,151.590925,0.00019995,3]
[345534857,1734318963806,154.27,0.00010137,2]
[345534860,1734319508436,1021630.00922604,0.0001,2]
[345534865,1734319563901,14777.63083386,9.8e-05,2]
[345534868,1734319633153,-422.0,0.00019528,2]
[345534869,1734319633177,-1015.15,0.00020106,2]
[345534870,1734319633200,-151.58345065,0.00020244,4]
[345534871,1734319633223,-1001.36,0.00020349,2]
[345534872,1734319633245,-163.07,0.00020475,2]
[345534873,1734319633269,-788.00146981,0.00020697,2]
[345534881,1734319745117,-400.9,0.00018507,2]
[345534882,1734319745138,-1305.19722016,0.0002024,2]
[345534883,1734319745166,-87.33277984,0.0002024,2]
[345534887,1734319826510,1577.69106301,0.00020214,2]
[345534888,1734319826532,3257.34893699,0.00020214,2]
[345534905,1734319832383,-206.57853019,0.00020697,2]
[345534906,1734319832393,-55.71378481,0.00020738,2]
[345534907,1734319832405,-631.13621519,0.00020738,2]
[345534908,1734319832415,-414.46378481,0.00020759,2]
[345534914,1734319832987,-4911.0686236,0.00020759,2]
[345534915,1734319832999,-5106.56509926,0.00020759,2]
[345534916,1734319833011,-1070.7,0.00020759,2]
[345534924,1734319838346,-4594.30249233,0.00020759,2]
[345534925,1734319838357,-400.9,0.00020771,2]
[345534926,1734319838367,-167.55,0.00020807,2]
[345534927,1734319838377,-250.0,0.00020807,2]
[345534928,1734319838387,-1000.0,0.000209,2]
[345534929,1734319838397,-351.55656637,0.00020987,10]
[345534930,1734319838407,-421.71,0.00021,2]
[345534931,1734319838416,-6733.000632,0.00021,8]
[345534932,1734319838428,-1428.16480927,0.00021,8]
[345534933,1734319838777,-2913.51928017,0.00021,8]
[345534934,1734319838789,-3554.51180238,0.00021,8]
[345534935,1734319838799,-5940.0,0.00021,8]
[345535063,1734319840373,-435.28418446,0.00021,8]
[345535379,1734319843434,-9596.63324271,0.00021,8]
[345535380,1734319843444,-175.01,0.00021012,2]
[345535382,1734319843453,-638.27,0.00021012,2]
[345535384,1734319843462,-175.01,0.00021038,2]
[345535387,1734319843472,-315.42,0.00021047,2]
[345535388,1734319843481,-175.01,0.00021065,2]
[345535390,1734319843491,-175.01,0.00021091,2]
[345535392,1734319843500,-300.0,0.00021092,2]
[345535394,1734319843509,-2726.61,0.00021093,2]
[345535396,1734319843519,-233.38,0.0002111,2]
[345535398,1734319843528,-175.01,0.00021117,2]
[345535400,1734319843538,-455.66116009,0.00021136,2]
[345535402,1734319843548,-361.53592492,0.00021136,2]
[345535404,1734319843564,-413.79296529,0.00021173,2]
[345535406,1734319843575,-257.19333504,0.00021173,2]
[345535408,1734319843584,-1961655.4278752,0.000212,2]
[345535410,1734319843594,-200.0,0.00021236,2]
[345535412,1734319843605,-1392.53,0.00021252,2]
[345535414,1734319843615,-455.66116004,0.00021276,2]
[345535416,1734319843624,-221.97,0.00021292,2]
[345535418,1734319843633,-500.0,0.00021314,2]
[345535420,1734319843644,-543.272,0.0002137,2]
[345535422,1734319843653,-250.0,0.00021406,2]
[345535424,1734319843663,-455.66116004,0.00021417,2]
[345535426,1734319843671,-455.66116004,0.00021557,2]
[345535428,1734319843681,-161.95,0.0002164,30]
[345535430,1734319843690,-300.78,0.00021678,2]
[345535432,1734319843699,-975.93,0.00021678,2]
[345535434,1734319843709,-301.38,0.00021678,2]
[345535436,1734319843719,-455.66116004,0.00021698,2]
[345535439,1734319843730,-1967.0,0.000218,2]
[345535441,1734319843739,-483.0,0.00021831,2]
[345535442,1734319843748,-455.66116004,0.00021838,2]
[345535444,1734319843758,-233.38,0.00021891,2]
[345535447,1734319843767,-3000.0,0.000219,2]
[345535448,1734319843777,-200.0,0.000219,2]
[345535451,1734319843786,-152.94962677,0.000219,2]
[345535452,1734319843795,-152.94962665,0.000219,2]
[345535454,1734319843805,-152.94962665,0.000219,2]
[345535456,1734319843815,-152.94962665,0.000219,2]
[345535458,1734319843826,-152.94962665,0.000219,2]
[345535460,1734319843835,-152.94962665,0.000219,2]
[345535462,1734319843845,-152.94962665,0.000219,2]
[345535464,1734319843854,-152.94962665,0.000219,2]
[345535466,1734319843863,-152.94962665,0.00021914,2]
[345535468,1734319843872,-513.19771758,0.00021917,3]
[345535470,1734319843881,-513.42357119,0.00021917,3]
[345535472,1734319843891,-500.0,0.00021917,3]
[345535474,1734319843900,-500.0,0.00021917,3]
[345535476,1734319843909,-500.0,0.00021917,3]
[345535478,1734319843919,-500.0,0.00021917,3]
[345535481,1734319843928,-500.0,0.00021917,3]
[345535483,1734319843938,-500.0,0.00021917,3]
[345535484,1734319843947,-500.0,0.00021917,3]
[345535486,1734319843956,-500.0,0.00021917,3]
[345535488,1734319843967,-500.0,0.00021917,3]
[345535491,1734319843977,-500.0,0.00021917,3]
[345535492,1734319843987,-500.0,0.00021917,3]
[345535494,1734319843997,-500.0,0.00021917,3]
[345535496,1734319844007,-500.0,0.00021917,3]
[345535498,1734319844016,-455.66116004,0.00021979,2]
[345535500,1734319844026,-500.0,0.00021999,3]
[345535503,1734319844035,-50999.999998,0.00022,10]
[345535504,1734319844045,-141745.99524,0.00022,2]
[345535506,1734319844054,-152.94962665,0.00022011,2]
[345535508,1734319844063,-152.94962665,0.00022108,2]
[345535510,1734319844075,-455.66116004,0.00022119,2]
[345535513,1734319844084,-500.0,0.00022199,3]
[345535514,1734319844094,-500.0,0.00022199,3]
[345535516,1734319844103,-500.0,0.00022199,3]
[345535519,1734319844114,-500.0,0.00022199,3]
[345535521,1734319844123,-500.0,0.00022199,3]
[345535523,1734319844132,-500.0,0.00022199,3]
[345535524,1734319844142,-540.02,0.00022199,3]
[345535526,1734319844151,-500.0,0.00022199,3]
[345535528,1734319844160,-542.67,0.00022199,3]
[345535530,1734319844170,-500.0,0.00022199,3]
[345535532,1734319844180,-500.0,0.00022199,3]
[345535534,1734319844189,-152.94962665,0.00022206,2]
[345535536,1734319844199,-150.0,0.0002223,2]
[345535537,1734319844208,-1000.0,0.00022254,2]
[345535538,1734319844218,-455.66116004,0.0002226,2]
[345535539,1734319844228,-1392.53,0.00022264,2]
[345535540,1734319844237,-2518.86009,0.0002227,2]
[345535541,1734319844247,-150.0,0.00022292,2]
[345535542,1734319844257,-500.0,0.00022295,3]
[345535543,1734319844266,-500.0,0.00022295,3]
[345535544,1734319844276,-500.0,0.00022295,3]
[345535546,1734319844285,-460.0,0.00022295,3]
[345535548,1734319844294,-500.0,0.00022295,3]
[345535550,1734319844303,-500.0,0.00022295,3]
[345535552,1734319844312,-500.0,0.00022295,3]
[345535554,1734319844321,-500.0,0.00022295,3]
[345535555,1734319844333,-500.0,0.00022295,3]
[345535557,1734319844343,-500.0,0.00022295,3]
[345535559,1734319844352,-647.10556666,0.00022295,3]
[345535561,1734319844361,-500.0,0.00022295,3]
[345535563,1734319844370,-500.0,0.00022295,3]
[345535565,1734319844379,-500.0,0.00022295,3]
[345535568,1734319844389,-500.0,0.00022295,3]
[345535570,1734319844399,-1369.79,0.00022295,3]
[345535571,1734319844415,-500.0,0.00022295,3]
[345535573,1734319844430,-30025.98523265,0.000223,2]
[345535575,1734319844440,-150.0,0.00022301,2]
[345535577,1734319844449,-152.94962665,0.00022303,2]
[345535579,1734319844459,-151.20571898,0.0002231,2]
[345535581,1734319844468,-151.20571896,0.00022333,2]
[345535583,1734319844478,-901.23445841,0.00022347,2]
[345535585,1734319844487,-901.23445841,0.0002235,2]
[345535587,1734319844496,-151.20571896,0.00022355,2]
[345535589,1734319844505,-2200.625,0.00022362,2]
[345535591,1734319844514,-195.60742731,0.00022362,2]
[345535593,1734319844523,-901.23445841,0.00022364,2]
[345535595,1734319844532,-151.20571896,0.00022378,2]
[345535597,1734319844541,-901.23445841,0.00022378,2]
[345535599,1734319844550,-901.23445841,0.00022386,2]
[345535601,1734319844560,-1108.0361,0.00022389,2]
[345535603,1734319844576,-901.23445841,0.00022391,2]
[345535605,1734319844587,-500.0,0.00022398,3]
[345535607,1734319844596,-500.0,0.00022398,3]
[345535609,1734319844606,-500.0,0.00022398,3]
[345535611,1734319844615,-500.0,0.00022398,3]
[345535613,1734319844624,-503.25663472,0.00022398,3]
[345535615,1734319844633,-653.96,0.00022398,3]
[345535617,1734319844645,-500.0,0.00022398,3]
[345535619,1734319844655,-500.0,0.00022398,3]
[345535621,1734319844664,-500.0,0.00022398,3]
[345535623,1734319844673,-500.0,0.00022398,3]
[345535625,1734319844682,-500.0,0.00022398,3]
[345535627,1734319844691,-401.93190475,0.00022398,3]
[345535629,1734319844700,-500.0,0.00022398,3]
[345535631,1734319844709,-500.0,0.00022398,3]
[345535633,1734319844718,-500.0,0.00022398,3]
[345535635,1734319844728,-500.0,0.00022398,3]
[345535637,1734319844737,-500.0,0.00022398,3]
[345535639,1734319844746,-500.0,0.00022398,3]
[345535641,1734319844755,-908.0995,0.00022399,2]
[345535643,1734319844764,-500.0,0.00022399,3]
[345535645,1734319844773,-500.0,0.00022399,3]
[345535647,1734319844782,-500.0,0.00022399,3]
[345535649,1734319844791,-500.0,0.00022399,3]
[345535651,1734319844801,-500.0,0.00022399,3]
[345535653,1734319844810,-500.0,0.00022399,3]
[345535655,1734319844819,-500.0,0.00022399,3]
[345535657,1734319844830,-500.0,0.00022399,3]
[345535659,1734319844839,-500.0,0.00022399,3]
[345535661,1734319844849,-434.0414691,0.00022399,3]
[345535663,1734319844858,-500.0,0.00022399,3]
[345535665,1734319844867,-500.0,0.00022399,3]
[345535667,1734319844876,-500.0,0.00022399,3]
[345535669,1734319844885,-500.0,0.00022399,3]
[345535671,1734319844894,-608.81958249,0.00022399,3]
[345535673,1734319844903,-500.0,0.00022399,3]
[345535674,1734319844912,-205.34551392,0.00022399,3]
[345535676,1734319844921,-500.0,0.00022399,3]
[345535678,1734319844930,-500.0,0.00022399,3]
[345535680,1734319844939,-591.14,0.00022399,3]
[345535682,1734319844948,-591.16,0.00022399,3]
[345535684,1734319844957,-500.0,0.00022399,3]
[345535686,1734319844967,-586.29,0.00022399,3]
[345535688,1734319844978,-337.45277458,0.00022399,3]
[345535690,1734319844987,-500.0,0.00022399,3]
[345535692,1734319844996,-500.0,0.00022399,3]
[345535694,1734319845006,-1369.79,0.00022399,3]
[345535696,1734319845015,-376.705453,0.00022399,3]
[345535698,1734319845024,-261.79,0.00022399,3]
[345535700,1734319845033,-567.0,0.00022399,3]
[345535702,1734319845042,-500.0,0.00022399,3]
[345535704,1734319845051,-500.0,0.00022399,3]
[345535706,1734319845060,-593.86250287,0.00022399,3]
[345535708,1734319845069,-562.13090977,0.00022399,3]
[345535710,1734319845080,-500.0,0.00022399,3]
[345535712,1734319845089,-500.0,0.00022399,3]
[345535714,1734319845098,-500.0,0.00022399,3]
[345535716,1734319845108,-500.0,0.00022399,3]
[345535718,1734319845117,-500.0,0.00022399,3]
[345535720,1734319845127,-500.0,0.00022399,3]
[345535722,1734319845137,-500.0,0.00022399,3]
[345535724,1734319845146,-500.0,0.00022399,3]
[345535726,1734319845155,-500.0,0.00022399,3]
[345535728,1734319845164,-201.97942036,0.00022399,3]
[345535730,1734319845174,-1000.0,0.00022399,3]
[345535732,1734319845183,-500.0,0.00022399,3]
[345535734,1734319845193,-500.0,0.00022399,3]
[345535736,1734319845202,-500.0,0.00022399,3]
[345535738,1734319845211,-520.99174059,0.00022399,3]
[345535740,1734319845221,-500.0,0.00022399,3]
[345535742,1734319845231,-500.0,0.00022399,3]
[345535744,1734319845240,-500.0,0.00022399,3]
[345535746,1734319845249,-500.0,0.00022399,3]
[345535748,1734319845259,-500.0,0.00022399,3]
[345535750,1734319845268,-500.0,0.00022399,3]
[345535752,1734319845277,-1028.0,0.000224,2]
[345535754,1734319845286,-765.6,0.000224,31]
[345535756,1734319845296,-765.6,0.000224,31]
[345535758,1734319845305,-765.6,0.000224,31]
[345535759,1734319845315,-765.6,0.000224,31]
[345535760,1734319845324,-765.6,0.000224,31]
[345535761,1734319845334,-765.6,0.000224,31]
[345535762,1734319845343,-765.6,0.000224,31]
[345535763,1734319845353,-765.6,0.000224,31]
[345535764,1734319845362,-765.6,0.000224,31]
[345535765,1734319845372,-765.6,0.000224,31]
[345535766,1734319845381,-765.6,0.000224,31]
[345535767,1734319845391,-765.6,0.000224,31]
[345535768,1734319845400,-765.6,0.000224,31]
[345535770,1734319845410,-765.6,0.000224,31]
[345535772,1734319845419,-765.6,0.000224,31]
[345535774,1734319845429,-765.6,0.000224,31]
[345535776,1734319845438,-151.20571896,0.000224,2]
[345535778,1734319845448,-455.66116004,0.000224,2]
[345535781,1734319845457,-361.53592492,0.000224,2]
[345535783,1734319845467,-152.94962665,0.000224,2]
[345535785,1734319845476,-173.41879091,0.000224,2]
[345535786,1734319845486,-153.0,0.0002241,2]
[345535789,1734319845497,-153.0,0.0002241,2]
[345535791,1734319845506,-150.0,0.00022424,2]
[345535793,1734319845515,-150.0,0.00022426,2]
[345535795,1734319845525,-13738.0,0.00022426,2]
[345535797,1734319845535,-3882.0,0.00022426,2]
[345535799,1734319845544,-150.0,0.00022426,2]
[345535800,1734319845554,-1168.0,0.00022426,2]
[345535802,1734319845564,-736.199,0.00022426,2]
[345535804,1734319845577,-486.618,0.00022426,2]
[345535806,1734319845587,-150.0,0.00022462,2]
[345535808,1734319845597,-500.0,0.00022489,3]
[345535810,1734319845607,-500.0,0.00022489,3]
[345535812,1734319845616,-500.0,0.00022489,3]
[345535814,1734319845625,-500.0,0.00022489,3]
[345535816,1734319845634,-500.0,0.00022489,3]
[345535818,1734319845644,-500.0,0.00022489,3]
[345535820,1734319845654,-447.95546622,0.00022489,3]
[345535822,1734319845663,-1369.79,0.00022489,3]
[345535824,1734319845672,-500.0,0.00022497,3]
[345535826,1734319845682,-500.0,0.00022497,3]
[345535828,1734319845691,-500.0,0.00022497,3]
[345535830,1734319845700,-500.0,0.00022497,3]
[345535832,1734319845711,-500.0,0.00022497,3]
[345535834,1734319845720,-500.0,0.00022497,3]
[345535836,1734319845729,-1369.79,0.00022497,3]
[345535838,1734319845739,-150.0,0.00022498,2]
[345535840,1734319845748,-222.121612,0.00022498,2]
[345535842,1734319845757,-193.121612,0.00022498,4]
[345535844,1734319845766,-291.85,0.00022498,3]
[345535846,1734319845775,-500.0,0.00022498,3]